bitfinex/quotes_SOLUSD_20251001
["timestamp","ask_amount","ask_price","bid_price","bid_amount"]
[1759290805072,0.67,206.79,206.7,35.18]
[1759290805271,4.83629153,206.77,206.7,40.11780189]
[1759290805474,12.08943225,206.8,206.71,0.1]
[1759290805475,4.83603053,206.79,206.71,0.1]
[1759290807078,4.83603053,206.79,206.7,40.01780189]
[1759290807079,0.67,206.78,206.7,40.01780189]
[1759290807379,0.67,206.78,206.68,0.1]
[1759290807380,4.83629153,206.77,206.71,35.16]
[1759290807966,0.67,206.76,206.71,35.16]
[1759290808187,0.67,206.75,206.69,20.8]
[1759290808483,4.83629153,206.77,206.72,35.16]
[1759290808670,0.67,206.76,206.72,35.16]
[1759290809066,12.08927139,206.8,206.72,35.16]
[1759290809266,0.67,206.82,206.73,0.1]
[1759290809494,2.24554371,206.79,206.67,37.7]
[1759290809699,2.91554371,206.78,206.68,35.14]
[1759290809996,0.67,206.77,206.68,35.14]
[1759290810479,0.67,206.77,206.69,0.1]
[1759290811369,5.50646885,206.77,206.7,4.83792936]
[1759290811773,5.50558994,206.8,206.71,0.1]
[1759290812289,17.59456479,206.8,206.71,0.1]
[1759290812588,5.74644492,206.91,206.71,0.1]
[1759290812589,5.50512786,206.82,206.71,0.1]
[1759290813168,17.59293368,206.82,206.72,35.24]
[1759290813381,0.67,206.81,206.72,35.24]
[1759290813583,5.50558994,206.8,206.72,40.07745713]
[1759290814689,4.83558994,206.8,206.73,35.22]
[1759290814893,4.83558994,206.8,206.73,35.32]
[1759290815094,4.83535612,206.81,206.74,4.83699332]
[1759290815393,17.59374642,206.81,206.73,40.15716826]
[1759290815600,17.59374642,206.81,206.73,35.32]
[1759290815983,17.59374642,206.81,206.73,40.15721391]
[1759290816387,17.59374642,206.81,206.74,35.2]
[1759290816691,4.83535612,206.81,206.74,35.2]
[1759290817396,4.83535612,206.81,206.74,40.03691246]
[1759290818584,4.83535612,206.81,206.74,35.2]
[1759290819386,4.77535612,206.81,206.74,35.2]
[1759290819897,0.67,206.8,206.74,35.2]
[1759290820602,4.83582378,206.79,206.73,20.9]
[1759290820783,4.83582378,206.79,206.75,35.14]
[1759290820991,4.83582378,206.79,206.76,37.7]
[1759290821193,0.67,206.82,206.76,37.7]
[1759290821501,0.67,206.84,206.76,37.8]
[1759290821891,0.67,206.83,206.76,37.7]
[1759290822397,0.67,206.84,206.76,37.7]
[1759290822703,0.67,206.85,206.77,0.1]
[1759290822891,0.67,206.85,206.78,35.12]
[1759290823287,0.67,206.85,206.77,0.1]
[1759290823484,0.67,206.85,206.78,35.1]
[1759290823684,0.67,206.85,206.79,35.1]
[1759290824201,0.67,206.85,206.8,35.1]
[1759290824405,0.67,206.84,206.8,35.1]
[1759290824793,0.67,206.89,206.81,0.1]
[1759290824980,0.67,206.89,206.76,37.7]
[1759290824981,1.43661123,206.85,206.76,37.7]
[1759290825180,41.0826486,206.9,206.77,35.26]
[1759290825181,0.67,206.84,206.77,35.26]
[1759290825406,1.43661123,206.82,206.77,35.26]
[1759290825791,1.43661123,206.82,206.76,37.7]
[1759290825792,0.67,206.81,206.76,37.7]
[1759290826096,0.67,206.8,206.78,35.26]
[1759290826298,0.67,206.79,206.78,35.26]
[1759290826891,5.50582378,206.79,206.78,35.26]
[1759290827194,17.59538323,206.79,206.78,35.26]
[1759290828709,16.92538323,206.79,206.78,35.26]
[1759290829396,17.59538323,206.79,206.78,35.26]
[1759290829601,5.5046548,206.84,206.78,35.26]
[1759290829783,0.67,206.84,206.78,40.19605236]
[1759290829992,0.67,206.87,206.78,40.19605236]
[1759290830201,0.67,206.87,206.79,0.1]
[1759290830519,4.83418737,206.86,206.8,4.83558994]
[1759290830683,4.83418737,206.86,206.79,0.1]
[1759290831191,4.83418737,206.86,206.79,4.93581942]
[1759290835118,5.50395795,206.87,206.79,4.93581942]
[1759290835329,4.83395795,206.87,206.8,0.1]
[1759290836210,4.83395795,206.87,206.81,25.63535612]
[1759290836398,4.83395795,206.87,206.82,35.2]
[1759290836598,5.51395795,206.87,206.82,35.2]
[1759290836801,4.83373268,206.88,206.82,35.3]
[1759290837000,5.51349761,206.89,206.82,35.3]
[1759290837206,4.83349761,206.89,206.82,35.3]
[1759290837902,5.51349761,206.89,206.82,35.3]
[1759290838097,5.51349761,206.89,206.83,20.8]
[1759290838299,5.51349761,206.89,206.84,35.16]
[1759290838502,0.68,206.88,206.84,35.16]
[1759290838709,0.68,206.88,206.71,24.18839439]
[1759290838710,0.68,206.87,206.77,0.24216157]
[1759290839015,0.68,206.87,206.78,35.16]
[1759290839224,16.91721359,206.89,206.78,35.16]
[1759290839225,0.68,206.86,206.78,35.16]
[1759290839388,0.68,206.85,206.78,35.16]
[1759290839918,1.43661123,206.81,206.79,72.86]
[1759290840101,1.43661123,206.81,206.8,35.22]
[1759290840302,6.27196735,206.81,206.8,35.22]
[1759290840701,6.95196735,206.81,206.8,35.22]
[1759290841110,5.51535612,206.81,206.8,35.22]
[1759290842191,4.83510116,206.83,206.8,35.22]
[1759290842416,24.16745608,206.89,206.8,35.22]
[1759290842731,4.83325277,206.9,206.8,40.15557691]
[1759290842936,5.51325277,206.9,206.81,0.1]
[1759290843296,17.59638471,206.9,206.81,0.1]
[1759290843813,5.51325277,206.9,206.83,20.8]
[1759290844009,4.83325277,206.9,206.84,35.22]
[1759290844218,4.83301918,206.91,206.84,35.22]
[1759290845328,16.91556714,206.91,206.83,20.9]
[1759290845521,16.91556714,206.91,206.84,35.2]
[1759290846401,16.91556714,206.91,206.85,35.18]
[1759290847012,4.83301918,206.91,206.85,35.18]
[1759290847322,4.83301918,206.91,206.86,0.1]
[1759290847500,4.83275472,206.93,206.87,0.1]
[1759290847901,4.83275472,206.93,206.85,35.18]
[1759290848121,4.83275472,206.93,206.85,35.28]
[1759290848424,4.83275472,206.93,206.86,4.83418737]
[1759290848823,4.83275472,206.93,206.86,4.93418737]
[1759290849901,0.68,206.94,206.86,4.93418737]
[1759290850102,5.51233796,206.94,206.86,4.93418737]
[1759290850516,0.68,206.93,206.84,20.8]
[1759290850726,16.91313432,206.94,206.87,35.16]
[1759290850727,0.68,206.92,206.87,35.16]
[1759290850910,0.68,206.92,206.88,35.14]
[1759290851110,20.71806651,206.94,206.88,35.14]
[1759290851111,0.68,206.91,206.88,35.14]
[1759290851313,0.68,206.9,206.88,35.14]
[1759290851614,17.59720237,206.89,206.82,20.8]
[1759290851803,17.59720237,206.89,206.83,35.14]
[1759290852427,5.51348639,206.89,206.83,35.14]
[1759290853136,4.83348639,206.89,206.83,35.14]
[1759290853501,4.83348639,206.89,206.83,39.97481422]
[1759290855324,4.83348639,206.89,206.8,37.68]
[1759290855325,3.80493219,206.84,206.8,37.68]
[1759290855514,0.68,206.83,206.81,35.3]
[1759290855712,29.14179489,206.89,206.81,35.3]
[1759290855713,0.68,206.82,206.81,35.3]
[1759290855908,28.99963332,206.89,206.81,35.3]
[1759290855909,0.68,206.84,206.81,35.3]
[1759290856231,0.68,206.83,206.81,35.3]
[1759290856937,0.68,206.82,206.8,37.68]
[1759290857116,0.68,206.85,206.81,35.28]
[1759290857306,0.68,206.88,206.81,35.28]
[1759290857507,0.68,206.87,206.81,35.28]
[1759290858425,16.91720237,206.89,206.81,35.28]
[1759290858615,16.91720237,206.89,206.81,35.38]
[1759290859031,17.58720237,206.89,206.81,35.38]
[1759290859541,4.83348639,206.89,206.82,0.1]
[1759290859825,4.83348639,206.89,206.82,37.78]
[1759290860030,4.83348639,206.89,206.83,0.1]
[1759290860346,0.67,206.89,206.84,35.28]
[1759290860520,0.67,206.88,206.84,35.28]
[1759290860708,4.83255207,206.93,206.85,0.1]
[1759290861327,5.50115126,206.99,206.88,25.63372003]
[1759290861503,5.50115126,206.99,206.89,35.42]
[1759290861706,0.67,206.98,206.89,35.42]
[1759290861903,0.67,206.98,206.89,0.1]
[1759290862133,0.67,206.98,206.9,35.34]
[1759290862716,4.8316181,206.97,206.9,35.34]
[1759290862916,16.91066337,206.97,206.89,0.1]
[1759290863131,16.91066337,206.97,206.9,35.32]
[1759290863313,17.63066337,206.97,206.9,35.32]
[1759290863511,17.63066337,206.97,206.87,20.8]
[1759290863735,0.72,206.96,206.88,56.1]
[1759290864034,0.72,206.95,206.89,35.3]
[1759290865026,16.9131149,206.94,206.89,35.3]
[1759290865233,4.83231854,206.94,206.89,35.4]
[1759290865413,12.07946939,206.97,206.89,35.3]
[1759290865728,4.83185156,206.96,206.9,0.1]
[1759290866031,0.72,206.99,206.9,0.1]
[1759290866727,12.07729468,207.0,206.9,0.1]
[1759290867337,16.90821255,207.0,206.91,4.83301918]
[1759290868118,16.90821255,207.0,206.92,20.8]
[1759290868319,16.90821255,207.0,206.93,35.26]
[1759290869044,16.90821255,207.0,206.94,35.26]
[1759290869250,16.9049459,207.04,206.94,35.26]
[1759290869417,0.72,207.0,206.94,35.26]
[1759290869824,0.72,207.0,206.92,25.63271429]
[1759290870044,0.72,207.0,206.89,12.08371598]
[1759290870045,3.80493219,206.96,206.93,72.9]
[1759290870354,0.72,206.95,206.94,35.22]
[1759290871425,5.55208504,206.95,206.94,35.22]
[1759290872332,9.35701723,206.95,206.94,35.38]
[1759290873624,5.55208504,206.95,206.94,35.38]
[1759290874742,31.9045194,206.95,206.93,37.68]
[1759290874921,6.27243436,206.94,206.93,37.68]
[1759290876022,11.1047529,206.94,206.93,73.0]
[1759290876639,5.55231854,206.94,206.93,73.0]
[1759290883449,23.18554926,206.94,206.93,37.68]
[1759290884757,23.18554926,206.94,206.93,72.86]
[1759290885145,4.8316181,206.97,206.93,72.86]
[1759290885335,6.27243436,206.96,206.94,35.18]
[1759290885534,0.72,206.95,206.94,35.18]
[1759290886726,5.55208504,206.95,206.94,35.18]
[1759290887128,4.83208504,206.95,206.94,35.18]
[1759290889859,16.90821255,207.0,206.94,35.18]
[1759290890161,17.62821255,207.0,206.94,35.18]
[1759290891250,6.27243436,206.99,206.94,35.18]
[1759290891448,0.72,206.98,206.94,35.18]
[1759290891764,0.72,206.97,206.94,35.18]
[1759290892739,41.78280192,207.0,206.94,35.18]
[1759290893236,16.90821255,207.0,206.94,35.28]
[1759290893435,4.83091787,207.0,206.95,0.1]
[1759290893636,4.83091787,207.0,206.96,35.18]
[1759290893837,0.7,206.99,206.97,35.18]
[1759290894062,10.38335223,207.0,206.98,35.18]
[1759290894565,0.7,206.99,206.98,35.18]
[1759290895057,16.90821255,207.0,206.98,35.18]
[1759290895363,0.7,206.99,206.98,35.18]
[1759290895741,12.07729468,207.0,206.98,35.18]
[1759290895941,12.77729468,207.0,206.98,35.18]
[1759290897791,17.60821255,207.0,206.98,35.18]
[1759290897968,16.90821255,207.0,206.98,35.18]
[1759290898282,17.60821255,207.0,206.98,35.18]
[1759290898453,0.7,206.99,206.98,35.18]
[1759290899559,16.90821255,207.0,206.98,35.18]
[1759290899872,17.60821255,207.0,206.98,35.18]
[1759290900072,19.14919223,207.0,206.93,37.68]
[1759290900279,2.24097968,206.94,206.83,0.1]
[1759290900478,2.24097968,206.88,206.78,14.50010875]
[1759290900663,2.24097968,206.86,206.79,35.42]
[1759290900959,2.94097968,206.85,206.78,0.1]
[1759290901168,2.94097968,206.85,206.79,35.44]
[1759290901379,2.94097968,206.85,206.78,0.1]
[1759290901567,0.7,206.85,206.8,35.44]
[1759290901775,16.92047376,206.85,206.8,35.44]
[1759290902083,0.7,206.84,206.8,35.44]
[1759290903470,16.92210993,206.83,206.8,35.44]
[1759290903876,16.92210993,206.83,206.74,25.6369745]
[1759290904085,0.7,206.82,206.75,35.38]
[1759290906186,4.83535612,206.81,206.75,35.38]
[1759290906385,16.92374642,206.81,206.75,35.38]
[1759290907387,0.7,206.8,206.72,0.1]
[1759290907589,0.7,206.8,206.73,35.38]
[1759290907898,0.7,206.79,206.74,35.38]
[1759290908281,17.62620175,206.78,206.74,35.38]
[1759290909790,16.92620175,206.78,206.75,37.68]
[1759290910398,17.62620175,206.78,206.75,37.68]
[1759290910885,0.7,206.77,206.75,37.68]
[1759290912105,16.92620175,206.78,206.75,37.68]
[1759290912291,17.62620175,206.78,206.75,37.68]
[1759290912687,0.7,206.77,206.75,37.68]
[1759290912888,17.62620175,206.78,206.75,37.68]
[1759290913092,4.83594477,206.79,206.75,37.68]
[1759290913277,16.92550422,206.79,206.75,37.68]
[1759290913682,4.83594477,206.79,206.75,37.68]
[1759290914102,4.83594477,206.79,206.75,37.78]
[1759290914408,4.83594477,206.79,206.76,0.1]
[1759290914602,4.83594477,206.79,206.77,35.3]
[1759290914805,4.83535612,206.81,206.77,35.3]
[1759290915000,4.8346548,206.84,206.77,35.4]
[1759290915197,16.92129181,206.84,206.77,35.4]
[1759290915403,17.62129181,206.84,206.77,35.3]
[1759290916306,0.7,206.83,206.77,35.3]
[1759290917514,0.7,206.82,206.77,35.3]
[1759290917699,12.08663701,206.84,206.77,35.3]
[1759290918010,0.7,206.81,206.77,35.3]
[1759290918407,0.7,206.8,206.75,37.68]
[1759290918601,0.7,206.8,206.78,35.26]
[1759290918801,0.7,206.83,206.78,35.26]
[1759290920012,0.67,206.82,206.78,35.26]
[1759290920319,4.83488855,206.83,206.78,35.26]
[1759290920527,12.08529974,206.87,206.79,0.1]
[1759290921496,16.9196558,206.86,206.79,0.1]
[1759290922698,0.67,206.86,206.77,0.1]
[1759290922898,0.67,206.86,206.78,35.22]
[1759290923115,0.67,206.85,206.78,35.22]
[1759290924310,4.8346548,206.84,206.79,0.1]
[1759290926214,17.61053162,206.85,206.78,112.22]
[1759290926611,0.69,206.84,206.78,112.22]
[1759290927595,4.83488855,206.83,206.78,112.22]
[1759290927797,4.83488855,206.83,206.78,112.32]
[1759290928321,4.83488855,206.83,206.79,0.1]
[1759290928823,4.83488855,206.83,206.8,35.14]
[1759290929024,0.69,206.89,206.81,0.1]
[1759290929197,4.83208504,206.95,206.83,20.8]
[1759290929402,0.69,206.94,206.84,35.24]
[1759290930024,4.83208504,206.95,206.8,25.63547106]
[1759290930025,0.69,206.93,206.8,25.63547106]
[1759290930204,2.2437821,206.92,206.81,35.14]
[1759290930399,2.2437821,206.83,206.73,0.1]
[1759290930609,2.2437821,206.83,206.74,72.84]
[1759290930799,2.2437821,206.83,206.75,35.18]
[1759290931148,0.69,206.82,206.75,35.18]
[1759290931416,0.69,206.81,206.75,35.18]
[1759290933028,0.69,206.85,206.76,0.1]
[1759290933320,16.9196558,206.86,206.76,0.1]
[1759290933704,0.69,206.85,206.78,20.8]
[1759290934023,16.9196558,206.86,206.78,20.8]
[1759290934024,4.83418737,206.86,206.78,20.8]
[1759290934209,4.83390807,206.88,206.8,20.8]
[1759290934413,5.52346116,206.9,206.81,35.28]
[1759290934617,5.52346116,206.9,206.82,0.1]
[1759290934618,4.83346116,206.9,206.82,0.1]
[1759290935619,16.91521583,206.92,206.83,4.83488855]
[1759290935814,0.69,206.91,206.82,0.1]
[1759290936126,0.69,206.91,206.81,35.18]
[1759290936424,0.69,206.9,206.81,35.18]
[1759290936620,0.69,206.89,206.82,35.18]
[1759290937132,17.40144202,206.91,206.82,35.18]
[1759290937133,0.69,206.88,206.82,35.18]
[1759290937424,0.69,206.88,206.83,37.7]
[1759290937629,4.83395369,206.87,206.83,37.7]
[1759290937803,5.52395369,206.87,206.83,37.7]
[1759290939226,17.60883791,206.87,206.83,37.7]
[1759290939627,0.69,206.87,206.83,37.7]
[1759290939929,0.69,206.86,206.83,37.7]
[1759290941909,5.52442107,206.85,206.83,37.7]
[1759290942214,0.69,206.84,206.83,37.7]
[1759290943005,4.83442107,206.85,206.83,37.7]
[1759290945130,0.69,206.84,206.83,37.7]
[1759290945327,0.69,206.84,206.83,72.8]
[1759290946740,5.5246548,206.84,206.83,72.8]
[1759290946910,4.8346548,206.84,206.83,72.8]
[1759290947733,0.69,206.84,206.83,72.8]
[1759290948035,0.69,206.84,206.83,37.7]
[1759290948218,0.69,206.84,206.83,72.74]
[1759290949235,5.5246548,206.84,206.83,72.74]
[1759290950516,4.8346548,206.84,206.83,72.74]
[1759290951140,4.83442107,206.85,206.83,72.74]
[1759290951410,4.83442107,206.85,206.83,72.84]
[1759290951629,4.83442107,206.85,206.83,72.74]
[1759290954342,4.83418737,206.86,206.83,72.74]
[1759290955244,17.6296558,206.86,206.83,72.74]
[1759290955939,16.9196558,206.86,206.83,72.74]
[1759290956141,0.71,206.85,206.84,35.0]
[1759290956342,0.71,206.87,206.84,35.0]
[1759290956644,0.71,206.86,206.83,37.7]
[1759290956939,3.80584801,206.89,206.84,35.0]
[1759290956940,0.71,206.85,206.84,35.0]
[1759290957238,0.71,206.87,206.84,35.0]
[1759290957415,0.71,206.86,206.84,35.0]
[1759290958341,4.83442107,206.85,206.84,35.0]
[1759290960741,0.71,206.85,206.84,35.0]
[1759290962838,5.54442107,206.85,206.84,35.0]
[1759290968545,4.83442107,206.85,206.84,35.0]
[1759290969455,5.54442107,206.85,206.84,35.0]
[1759290973138,4.83442107,206.85,206.84,35.0]
[1759290974238,16.9191061,206.87,206.84,35.0]
[1759290974550,17.6291061,206.87,206.84,35.0]
[1759290977949,0.71,206.86,206.85,35.0]
[1759290979854,5.54418737,206.86,206.85,35.0]
[1759290981862,5.54418737,206.86,206.83,37.7]
[1759290981863,17.6296558,206.86,206.83,37.7]
[1759290982069,2.11582016,206.85,206.83,37.7]
[1759290982445,0.68,206.84,206.83,37.7]
[1759290983071,0.68,206.84,206.83,72.7]
[1759290983263,5.5146548,206.84,206.83,72.7]
[1759290985073,4.83434512,206.86,206.83,72.7]
[1759290985268,4.83395369,206.87,206.83,72.7]
[1759290985791,5.50395369,206.87,206.83,72.7]
[1759290985969,4.83395369,206.87,206.83,72.7]
[1759290986349,16.91883791,206.87,206.83,72.7]
[1759290987281,0.67,206.87,206.83,72.7]
[1759290989777,16.9196558,206.86,206.83,72.7]
[1759290990783,0.67,206.85,206.83,37.7]
[1759290990952,0.67,206.85,206.84,34.98]
[1759290992976,5.50442107,206.85,206.84,34.98]
[1759290994369,4.83442107,206.85,206.84,34.98]
[1759290994565,4.83418737,206.86,206.84,34.98]
[1759290994880,0.67,206.85,206.84,34.98]
[1759290996179,5.50442107,206.85,206.84,34.98]
[1759290998278,16.9191076,206.87,206.84,34.98]
[1759290998677,0.67,206.86,206.84,34.98]
[1759290999283,4.83442107,206.85,206.84,34.98]
[1759291000280,4.83422503,206.86,206.84,35.08]
[1759291000592,4.83422503,206.86,206.85,0.1]
[1759291001384,16.91694587,206.9,206.84,34.98]
[1759291001583,16.91694587,206.9,206.84,35.08]
[1759291002165,16.91694587,206.9,206.85,0.1]
[1759291002368,16.91694587,206.9,206.86,35.08]
[1759291002987,16.91694587,206.9,206.86,34.98]
[1759291003163,16.91694587,206.9,206.86,35.08]
[1759291003478,12.0836931,206.9,206.86,35.08]
[1759291005783,12.0836931,206.9,206.86,34.98]
[1759291005985,0.67,206.89,206.86,34.98]
[1759291006205,12.7536931,206.9,206.87,34.96]
[1759291007367,17.58694587,206.9,206.87,34.96]
[1759291008092,16.91694587,206.9,206.87,34.96]
[1759291008493,17.58694587,206.9,206.87,34.96]
[1759291008787,16.91694587,206.9,206.87,34.96]
[1759291008992,17.58694587,206.9,206.87,34.96]
[1759291011493,4.83325277,206.9,206.87,34.96]
[1759291012090,17.58638471,206.9,206.87,34.96]
[1759291012302,16.91638471,206.9,206.83,37.8]
[1759291012467,2.24391902,206.88,206.83,37.7]
[1759291012670,2.24391902,206.88,206.84,34.96]
[1759291012873,0.67,206.87,206.84,34.96]
[1759291013078,0.67,206.86,206.84,34.96]
[1759291013272,4.83442107,206.85,206.84,34.96]
[1759291014896,5.53442107,206.85,206.84,34.96]
[1759291020775,5.53442107,206.85,206.84,34.94]
[1759291021101,5.53442107,206.85,206.73,4.83702697]
[1759291021102,13.59559401,206.84,206.72,0.1]
[1759291021399,2.24391902,206.82,206.72,0.1]
[1759291021605,0.7,206.81,206.72,0.1]
[1759291022095,16.92456479,206.8,206.73,34.94]
[1759291022310,17.62456479,206.8,206.73,34.94]
[1759291022798,0.7,206.79,206.73,34.94]
[1759291023581,4.83605764,206.78,206.73,34.94]
[1759291023781,4.83605764,206.78,206.73,35.04]
[1759291024001,5.53605764,206.78,206.73,35.04]
[1759291026691,4.83605764,206.78,206.73,34.94]
[1759291026890,5.53605764,206.78,206.73,35.04]
[1759291027293,4.83605764,206.78,206.73,35.04]
[1759291027609,0.7,206.78,206.73,35.04]
[1759291027789,12.78897485,206.8,206.74,0.1]
[1759291028182,12.08897485,206.8,206.74,0.1]
[1759291028804,2.94391902,206.79,206.7,97.9]
[1759291028989,2.94391902,206.79,206.71,34.94]
[1759291029184,0.7,206.78,206.71,34.94]
[1759291029395,14.33289387,206.8,206.71,34.94]
[1759291029708,16.92620175,206.78,206.71,34.94]
[1759291030012,0.7,206.77,206.72,37.7]
[1759291030514,16.92620175,206.78,206.72,37.7]
[1759291030684,4.83605764,206.78,206.72,37.7]
[1759291031008,4.83565066,206.8,206.72,37.7]
[1759291031215,4.83565066,206.8,206.73,0.1]
[1759291031507,4.83565066,206.8,206.74,34.94]
[1759291031714,17.62462551,206.8,206.75,34.94]
[1759291031913,0.7,206.79,206.75,34.94]
[1759291032292,0.7,206.78,206.75,34.94]
[1759291033614,4.83629153,206.77,206.76,34.94]
[1759291033810,5.53629153,206.77,206.76,34.94]
[1759291034010,4.83629153,206.77,206.76,34.94]
[1759291034714,12.08897485,206.8,206.76,34.94]
[1759291034922,0.7,206.78,206.76,34.94]
[1759291035102,0.7,206.77,206.72,114.7]
[1759291035417,0.7,206.76,206.73,34.94]
[1759291035791,15.03289387,206.76,206.73,34.94]
[1759291036204,4.83675937,206.75,206.73,34.94]
[1759291036911,4.83675937,206.75,206.72,114.7]
[1759291037111,5.53675937,206.75,206.73,34.94]
[1759291037424,4.83652544,206.76,206.73,34.94]
[1759291037616,5.53652544,206.76,206.74,34.94]
[1759291038432,5.53652544,206.76,206.75,34.94]
[1759291038610,17.62783904,206.76,206.72,37.7]
[1759291038925,0.72,206.75,206.73,34.94]
[1759291039428,16.92783904,206.76,206.73,34.94]
[1759291039826,16.92783904,206.76,206.74,34.94]
[1759291040123,4.83652544,206.76,206.74,34.94]
[1759291042308,0.72,206.76,206.74,34.94]
[1759291042906,31.44256407,206.77,206.74,34.94]
[1759291043107,0.66,206.76,206.75,34.92]
[1759291043507,15.17554372,206.76,206.75,34.92]
[1759291044324,20.01206916,206.76,206.75,34.92]
[1759291049026,20.01206916,206.76,206.75,72.62]
[1759291050118,32.10338276,206.76,206.67,37.8]
[1759291050322,0.66,206.75,206.68,34.92]
[1759291050520,0.66,206.74,206.68,34.92]
[1759291050712,0.66,206.73,206.68,34.92]
[1759291050913,0.66,206.72,206.68,34.92]
[1759291051309,4.83769532,206.71,206.68,34.92]
[1759291053737,19.35656778,206.72,206.68,34.92]
[1759291053926,4.83751152,206.72,206.68,35.02]
[1759291054710,14.51765104,206.73,206.69,0.1]
[1759291054913,12.09234005,206.75,206.7,0.1]
[1759291055219,14.51765104,206.74,206.71,34.92]
[1759291056235,19.35464436,206.74,206.71,34.92]
[1759291056911,20.01464436,206.74,206.71,34.92]
[1759291057418,4.83699332,206.74,206.71,35.02]
[1759291057820,4.83699332,206.74,206.71,34.92]
[1759291058845,5.49699332,206.74,206.71,34.92]
[1759291059013,4.83677418,206.75,206.71,34.92]
[1759291059215,19.35372271,206.75,206.71,35.02]
[1759291059639,20.01372271,206.75,206.71,34.92]
[1759291059837,20.01372271,206.75,206.72,37.7]
[1759291060838,4.8372273,206.73,206.72,37.7]
[1759291061636,5.4972273,206.73,206.72,37.7]
[1759291062042,4.8372273,206.73,206.72,37.7]
[1759291062242,5.4972273,206.73,206.72,37.7]
[1759291062418,5.4972273,206.73,206.72,72.6]
[1759291062620,32.10724408,206.73,206.72,37.7]
[1759291062817,32.10724408,206.73,206.72,72.6]
[1759291070745,4.8372273,206.73,206.72,72.6]
[1759291073035,16.92839364,206.76,206.72,72.6]
[1759291073241,14.51694853,206.75,206.72,72.6]
[1759291074148,4.83699332,206.74,206.72,72.6]
[1759291075247,14.51694853,206.74,206.72,72.6]
[1759291076842,15.18694853,206.74,206.72,72.6]
[1759291077254,4.8372273,206.73,206.72,72.6]
[1759291084548,5.5072273,206.73,206.72,37.7]
[1759291084755,5.5072273,206.73,206.72,72.56]
[1759291084954,32.11935181,206.73,206.71,37.72]
[1759291085252,31.44935181,206.73,206.72,34.86]
[1759291085457,16.93029555,206.73,206.72,34.86]
[1759291085755,17.60029555,206.73,206.72,34.86]
[1759291085966,32.11935181,206.73,206.72,34.86]
[1759291087938,32.11935181,206.73,206.72,34.84]
[1759291092750,32.11935181,206.73,206.71,37.72]
[1759291092939,31.44935181,206.73,206.72,34.84]
[1759291093138,16.93029555,206.73,206.72,34.84]
[1759291093338,31.45005452,206.73,206.72,34.84]
[1759291093541,32.12005452,206.73,206.72,34.84]
[1759291095765,45.71564853,206.73,206.72,34.84]
[1759291096070,13.59559401,206.72,206.61,37.82]
[1759291096247,2.10714085,206.71,206.62,37.82]
[1759291096444,0.67,206.7,206.62,37.82]
[1759291096639,0.67,206.69,206.62,37.82]
[1759291097062,0.67,206.69,206.63,34.82]
[1759291097264,4.83863163,206.67,206.63,34.82]
[1759291097468,4.83863163,206.67,206.63,34.92]
[1759291097644,16.93521071,206.67,206.63,34.92]
[1759291097968,14.52257049,206.66,206.63,34.82]